[Event "*** SCC Grand Prix: Titled Tuesday Blitz"]
[Site "Chess.com"]
[Date "2020.09.29"]
[Round "1"]
[White "SRDR8290"]
[Black "Trovita84"]
[Result "1-0"]
[WhiteElo "2469"]
[BlackElo "1978"]
[TimeControl "180+1"]
[EndTime "10:06:16 PDT"]
[Termination "SRDR8290 won on time"]

1. d4 {[%clk 0:03:00.1]} 1... e6 {[%clk 0:02:57.5]} 2. c4 {[%clk 0:02:59.1]}
2... Nf6 {[%clk 0:02:57.3]} 3. Nc3 {[%clk 0:02:59]} 3... d5 {[%clk 0:02:56.4]}
4. Bg5 {[%clk 0:02:58.4]} 4... Be7 {[%clk 0:02:55.5]} 5. e3 {[%clk 0:02:58.4]}
5... O-O {[%clk 0:02:55.4]} 6. Nf3 {[%clk 0:02:59]} 6... b6 {[%clk 0:02:49.7]}
7. Rc1 {[%clk 0:02:53.2]} 7... Bb7 {[%clk 0:02:48.4]} 8. Bxf6 {[%clk 0:02:38.1]}
8... Bxf6 {[%clk 0:02:35.1]} 9. cxd5 {[%clk 0:02:38]} 9... exd5 {[%clk
0:02:34.5]} 10. Bd3 {[%clk 0:02:38.1]} 10... c5 {[%clk 0:02:28.8]} 11. O-O
{[%clk 0:02:28]} 11... Nc6 {[%clk 0:02:25]} 12. dxc5 {[%clk 0:02:27.6]} 12...
bxc5 {[%clk 0:02:23.3]} 13. Na4 {[%clk 0:02:27.4]} 13... c4 {[%clk 0:02:19.3]}
14. Bb1 {[%clk 0:02:24]} 14... Qa5 {[%clk 0:01:47.5]} 15. b3 {[%clk 0:02:16.2]}
15... cxb3 {[%clk 0:01:38.8]} 16. axb3 {[%clk 0:02:17.1]} 16... Rfd8 {[%clk
0:01:32.4]} 17. Rc5 {[%clk 0:02:03.1]} 17... Qb4 {[%clk 0:01:23.3]} 18. Rxd5
{[%clk 0:02:02]} 18... Na5 {[%clk 0:01:16.1]} 19. Qd3 {[%clk 0:01:46.8]} 19...
Bxd5 {[%clk 0:01:03.2]} 20. Qxh7+ {[%clk 0:01:44.1]} 20... Kf8 {[%clk
0:01:03.7]} 21. Nd4 {[%clk 0:01:35.6]} 21... Bxd4 {[%clk 0:00:46.7]} 22. Qh8+
{[%clk 0:01:35.8]} 22... Ke7 {[%clk 0:00:46.4]} 23. Qh4+ {[%clk 0:01:36.4]}
23... f6 {[%clk 0:00:42.8]} 24. exd4 {[%clk 0:01:36.5]} 24... Nxb3 {[%clk
0:00:32]} 25. Qg3 {[%clk 0:01:28]} 25... Qxa4 {[%clk 0:00:19.4]} 26. Qxg7+
{[%clk 0:01:27.6]} 26... Kd6 {[%clk 0:00:18.7]} 27. Qxf6+ {[%clk 0:01:26.8]}
27... Kc7 {[%clk 0:00:18.8]} 28. Bf5 {[%clk 0:01:18.6]} 28... Qxd4 {[%clk
0:00:14.6]} 29. Qe7+ {[%clk 0:01:18.6]} 29... Kb6 {[%clk 0:00:12.1]} 30. Rb1
{[%clk 0:01:13.4]} 30... Re8 {[%clk 0:00:03.2]} 31. Qd6+ {[%clk 0:01:12.5]}
31... Kb7 {[%clk 0:00:02.5]} 32. h3 {[%clk 0:01:07.7]} 1-0

[Event "*** SCC Grand Prix: Titled Tuesday Blitz"]
[Site "Chess.com"]
[Date "2020.09.29"]
[Round "1"]
[White "Alexander_Donchenko"]
[Black "aloe_normansen"]
[Result "1-0"]
[WhiteElo "2684"]
[BlackElo "2349"]
[TimeControl "180+1"]
[EndTime "10:06:17 PDT"]
[Termination "Alexander_Donchenko won by resignation"]

1. Nf3 {[%clk 0:02:44.8]} 1... Nf6 {[%clk 0:02:59.4]} 2. c4 {[%clk 0:02:44.5]}
2... g6 {[%clk 0:02:59.2]} 3. Nc3 {[%clk 0:02:43.9]} 3... Bg7 {[%clk 0:02:59.3]}
4. e4 {[%clk 0:02:42.4]} 4... d6 {[%clk 0:02:59.1]} 5. d4 {[%clk 0:02:41.7]}
5... O-O {[%clk 0:02:58]} 6. Be2 {[%clk 0:02:42]} 6... e5 {[%clk 0:02:52.3]} 7.
dxe5 {[%clk 0:02:42.9]} 7... dxe5 {[%clk 0:02:52]} 8. Qxd8 {[%clk 0:02:43.8]}
8... Rxd8 {[%clk 0:02:52.7]} 9. Bg5 {[%clk 0:02:44.7]} 9... Re8 {[%clk
0:02:52.1]} 10. O-O-O {[%clk 0:02:44.2]} 10... Bg4 {[%clk 0:02:45.6]} 11. Nd5
{[%clk 0:02:09.4]} 11... Nxd5 {[%clk 0:02:44.8]} 12. cxd5 {[%clk 0:02:10.3]}
12... Bxf3 {[%clk 0:02:41.2]} 13. Bxf3 {[%clk 0:02:09.4]} 13... Nd7 {[%clk
0:02:14.8]} 14. Kb1 {[%clk 0:02:07.2]} 14... h6 {[%clk 0:01:46.4]} 15. Be3
{[%clk 0:02:06.4]} 15... Nf6 {[%clk 0:01:24.9]} 16. Rc1 {[%clk 0:02:03]} 16...
Rac8 {[%clk 0:01:23.8]} 17. Bxa7 {[%clk 0:01:48]} 17... b6 {[%clk 0:01:16.3]}
18. Rc6 {[%clk 0:01:47.6]} 18... Nd7 {[%clk 0:00:49.3]} 19. Bg4 {[%clk
0:01:44.3]} 19... f5 {[%clk 0:00:31.2]} 20. exf5 {[%clk 0:01:43.9]} 20... Nf6
{[%clk 0:00:31.7]} 21. Be2 {[%clk 0:01:34]} 21... gxf5 {[%clk 0:00:29.8]} 22.
Rhc1 {[%clk 0:01:32.7]} 22... e4 {[%clk 0:00:23.8]} 23. Rxc7 {[%clk 0:01:30.2]}
23... Rxc7 {[%clk 0:00:24.7]} 24. Rxc7 {[%clk 0:01:30.6]} 24... Bf8 {[%clk
0:00:24.5]} 25. Bxb6 {[%clk 0:01:28.6]} 25... f4 {[%clk 0:00:18.8]} 26. Bc4
{[%clk 0:01:24.9]} 26... Bd6 {[%clk 0:00:18.6]} 27. Rc6 {[%clk 0:01:23.6]} 27...
Be5 {[%clk 0:00:18.3]} 28. a4 {[%clk 0:01:16.2]} 28... Kg7 {[%clk 0:00:18.6]}
29. a5 {[%clk 0:01:15.9]} 29... Ng4 {[%clk 0:00:15.8]} 30. h3 {[%clk 0:01:13.5]}
30... Nf6 {[%clk 0:00:16.1]} 31. a6 {[%clk 0:01:13]} 31... Bb8 {[%clk
0:00:16.4]} 32. a7 {[%clk 0:01:12.5]} 32... Bxa7 {[%clk 0:00:16.8]} 33. Bxa7
{[%clk 0:01:13.4]} 33... e3 {[%clk 0:00:17.1]} 34. fxe3 {[%clk 0:01:13.6]} 34...
fxe3 {[%clk 0:00:18]} 35. Re6 {[%clk 0:01:13.6]} 35... Rc8 {[%clk 0:00:16.8]}
36. b3 {[%clk 0:01:10.4]} 1-0

[Event "*** SCC Grand Prix: Titled Tuesday Blitz"]
[Site "Chess.com"]
[Date "2020.09.29"]
[Round "1"]
[White "MikeSailer"]
[Black "NuidisVulko"]
[Result "0-1"]
[WhiteElo "2070"]
[BlackElo "2493"]
[TimeControl "180+1"]
[EndTime "10:06:17 PDT"]
[Termination "NuidisVulko won by resignation"]

1. d4 {[%clk 0:02:58.8]} 1... Nf6 {[%clk 0:02:30.1]} 2. Bf4 {[%clk 0:02:57.2]}
2... c5 {[%clk 0:02:30]} 3. e3 {[%clk 0:02:57.7]} 3... d5 {[%clk 0:02:29.4]} 4.
Nc3 {[%clk 0:02:57.1]} 4... e6 {[%clk 0:02:26.4]} 5. Nf3 {[%clk 0:02:53.7]} 5...
Be7 {[%clk 0:02:26.4]} 6. Be2 {[%clk 0:02:41.4]} 6... O-O {[%clk 0:02:26.5]} 7.
O-O {[%clk 0:02:42]} 7... Nc6 {[%clk 0:02:26.4]} 8. h3 {[%clk 0:02:42.1]} 8...
b6 {[%clk 0:02:22.2]} 9. Ne5 {[%clk 0:02:30.4]} 9... Nxe5 {[%clk 0:02:19.4]} 10.
Bxe5 {[%clk 0:02:30.8]} 10... Nd7 {[%clk 0:02:18.8]} 11. Bh2 {[%clk 0:02:28.2]}
11... Bb7 {[%clk 0:02:18.7]} 12. Bf3 {[%clk 0:02:14.8]} 12... a6 {[%clk
0:02:12.8]} 13. a4 {[%clk 0:02:01.5]} 13... Rc8 {[%clk 0:02:11.5]} 14. Qe2
{[%clk 0:01:59.5]} 14... Nf6 {[%clk 0:01:59.9]} 15. Rfd1 {[%clk 0:01:54]} 15...
Bd6 {[%clk 0:02:00.1]} 16. Bxd6 {[%clk 0:01:52.8]} 16... Qxd6 {[%clk 0:02:00.4]}
17. e4 {[%clk 0:01:41.2]} 17... dxe4 {[%clk 0:01:37.2]} 18. Nxe4 {[%clk
0:01:40.1]} 18... Bxe4 {[%clk 0:01:35.2]} 19. Bxe4 {[%clk 0:01:40.6]} 19... cxd4
{[%clk 0:01:35.7]} 20. Bb7 {[%clk 0:01:32.3]} 20... Rc7 {[%clk 0:01:26.6]} 21.
Bxa6 {[%clk 0:01:32.7]} 21... e5 {[%clk 0:01:27.1]} 22. f3 {[%clk 0:01:31.1]}
22... Nd5 {[%clk 0:01:26.6]} 23. Bd3 {[%clk 0:01:23.4]} 23... Nf4 {[%clk
0:01:19.7]} 24. Qe4 {[%clk 0:01:22.4]} 24... f5 {[%clk 0:01:17.1]} 25. Qe1
{[%clk 0:01:15.4]} 25... Re7 {[%clk 0:01:09.8]} 26. Bc4+ {[%clk 0:01:07.1]}
26... Kh8 {[%clk 0:01:09.4]} 27. Qd2 {[%clk 0:01:07.7]} 27... Rf6 {[%clk
0:00:47]} 28. a5 {[%clk 0:01:04.6]} 28... bxa5 {[%clk 0:00:39.5]} 29. Rxa5
{[%clk 0:00:58.8]} 29... Re8 {[%clk 0:00:37.3]} 30. Kh1 {[%clk 0:00:50]} 30...
Qc7 {[%clk 0:00:36.7]} 31. Rda1 {[%clk 0:00:48.7]} 31... Qxc4 {[%clk 0:00:36.1]}
32. Ra8 {[%clk 0:00:48.5]} 32... Rff8 {[%clk 0:00:36.5]} 33. Rxe8 {[%clk
0:00:44.8]} 33... Rxe8 {[%clk 0:00:37.4]} 34. Re1 {[%clk 0:00:45.3]} 34... h6
{[%clk 0:00:36.6]} 35. Qxf4 {[%clk 0:00:45.5]} 35... exf4 {[%clk 0:00:36.7]} 0-1

[Event "*** SCC Grand Prix: Titled Tuesday Blitz"]
[Site "Chess.com"]
[Date "2020.09.29"]
[Round "1"]
[White "Mostii"]
[Black "swimmerchess"]
[Result "0-1"]
[WhiteElo "2406"]
[BlackElo "2824"]
[TimeControl "180+1"]
[EndTime "10:06:21 PDT"]
[Termination "swimmerchess won by checkmate"]

1. d4 {[%clk 0:02:59.1]} 1... Nf6 {[%clk 0:02:57.9]} 2. Nf3 {[%clk 0:03:00]}
2... e6 {[%clk 0:02:57.1]} 3. g3 {[%clk 0:03:00.5]} 3... b5 {[%clk 0:02:56.9]}
4. Bg2 {[%clk 0:03:00.5]} 4... Bb7 {[%clk 0:02:57.5]} 5. O-O {[%clk 0:02:56]}
5... c5 {[%clk 0:02:57.5]} 6. b3 {[%clk 0:02:53.9]} 6... cxd4 {[%clk 0:02:56.2]}
7. Bb2 {[%clk 0:02:46.9]} 7... a6 {[%clk 0:02:50.4]} 8. Nxd4 {[%clk 0:02:45.6]}
8... Bxg2 {[%clk 0:02:49.5]} 9. Kxg2 {[%clk 0:02:46.5]} 9... Be7 {[%clk
0:02:50.2]} 10. e3 {[%clk 0:02:46.7]} 10... O-O {[%clk 0:02:49.6]} 11. Nd2
{[%clk 0:02:47.3]} 11... Qc7 {[%clk 0:02:49.2]} 12. c4 {[%clk 0:02:47.2]} 12...
Nc6 {[%clk 0:02:47.9]} 13. Nxc6 {[%clk 0:02:38.7]} 13... Qxc6+ {[%clk
0:02:48.8]} 14. Qf3 {[%clk 0:02:38.2]} 14... Qb6 {[%clk 0:02:45.1]} 15. Bd4
{[%clk 0:02:35.6]} 15... Qa5 {[%clk 0:02:45.1]} 16. Rfd1 {[%clk 0:02:14.8]}
16... Rac8 {[%clk 0:02:43.5]} 17. a3 {[%clk 0:01:49.1]} 17... bxc4 {[%clk
0:02:27]} 18. Nxc4 {[%clk 0:01:48.3]} 18... Qb5 {[%clk 0:02:27.1]} 19. Bxf6
{[%clk 0:01:30.7]} 19... gxf6 {[%clk 0:02:28]} 20. Nd6 {[%clk 0:01:24.5]} 20...
Bxd6 {[%clk 0:02:24.8]} 21. Rxd6 {[%clk 0:01:25.4]} 21... f5 {[%clk 0:02:21.7]}
22. b4 {[%clk 0:01:00.2]} 22... Rc3 {[%clk 0:02:12.2]} 23. Rad1 {[%clk 0:00:43]}
23... Rxa3 {[%clk 0:02:01.5]} 24. Rxd7 {[%clk 0:00:42.2]} 24... Qxb4 {[%clk
0:01:56]} 25. R7d4 {[%clk 0:00:38.9]} 25... Qe7 {[%clk 0:01:52.9]} 26. Rh4
{[%clk 0:00:37.4]} 26... Qf6 {[%clk 0:01:52.3]} 27. Rd7 {[%clk 0:00:30]} 27...
Ra2 {[%clk 0:01:42.9]} 28. Ra7 {[%clk 0:00:28.3]} 28... Rd8 {[%clk 0:01:40.2]}
29. Rh5 {[%clk 0:00:16.7]} 29... Rdd2 {[%clk 0:01:34.9]} 30. h4 {[%clk
0:00:13.4]} 30... Rxf2+ {[%clk 0:01:31.7]} 31. Qxf2 {[%clk 0:00:14.3]} 31...
Rxf2+ {[%clk 0:01:31.9]} 32. Kxf2 {[%clk 0:00:14.8]} 32... Qb2+ {[%clk
0:01:26.2]} 33. Kg1 {[%clk 0:00:13]} 33... Qc1+ {[%clk 0:01:25.7]} 34. Kg2
{[%clk 0:00:12.7]} 34... Qd2+ {[%clk 0:01:25.1]} 35. Kh3 {[%clk 0:00:13.1]}
35... Qd1 {[%clk 0:01:16.7]} 36. Rg5+ {[%clk 0:00:10.7]} 36... Kf8 {[%clk
0:01:17]} 37. Ra8+ {[%clk 0:00:08.8]} 37... Ke7 {[%clk 0:01:17.2]} 38. Kh2
{[%clk 0:00:09.2]} 38... Qe2+ {[%clk 0:01:16.7]} 39. Kh3 {[%clk 0:00:09.6]}
39... Qf1+ {[%clk 0:01:16.4]} 40. Kh2 {[%clk 0:00:09.4]} 40... Qf2+ {[%clk
0:01:16.8]} 41. Kh3 {[%clk 0:00:09.8]} 41... Qf3 {[%clk 0:01:17.1]} 42. Rgg8
{[%clk 0:00:10.7]} 42... Qh1# {[%clk 0:01:17.2]} 0-1

[Event "*** SCC Grand Prix: Titled Tuesday Blitz"]
[Site "Chess.com"]
[Date "2020.09.29"]
[Round "1"]
[White "gui_borba"]
[Black "Andreikka"]
[Result "0-1"]
[WhiteElo "2423"]
[BlackElo "2853"]
[TimeControl "180+1"]
[EndTime "10:06:22 PDT"]
[Termination "Andreikka won by resignation"]

1. e4 {[%clk 0:03:00]} 1... c6 {[%clk 0:02:51.3]} 2. d4 {[%clk 0:02:59.5]} 2...
d5 {[%clk 0:02:51.2]} 3. e5 {[%clk 0:02:59.2]} 3... Bf5 {[%clk 0:02:50.8]} 4. h4
{[%clk 0:02:59.6]} 4... h5 {[%clk 0:02:50.7]} 5. Bd3 {[%clk 0:02:58.9]} 5...
Bxd3 {[%clk 0:02:51.2]} 6. Qxd3 {[%clk 0:02:59.8]} 6... Qa5+ {[%clk 0:02:51.6]}
7. Nd2 {[%clk 0:02:59.1]} 7... e6 {[%clk 0:02:50.8]} 8. Nf3 {[%clk 0:02:58.7]}
8... Nh6 {[%clk 0:02:50]} 9. O-O {[%clk 0:02:57.8]} 9... Qa6 {[%clk 0:02:50.1]}
10. c4 {[%clk 0:02:57.5]} 10... Nd7 {[%clk 0:02:49.9]} 11. b3 {[%clk 0:02:53.8]}
11... Nf5 {[%clk 0:02:48.2]} 12. Re1 {[%clk 0:02:49.2]} 12... Bb4 {[%clk
0:02:42.6]} 13. a3 {[%clk 0:02:41.8]} 13... O-O {[%clk 0:02:39.3]} 14. g3 {[%clk
0:02:19.7]} 14... c5 {[%clk 0:02:30.5]} 15. Bb2 {[%clk 0:01:43.4]} 15... Bxd2
{[%clk 0:02:28.2]} 16. Nxd2 {[%clk 0:01:39.7]} 16... Rac8 {[%clk 0:02:09.2]} 17.
Rac1 {[%clk 0:01:27]} 17... cxd4 {[%clk 0:01:54.1]} 18. Bxd4 {[%clk 0:01:19.2]}
18... dxc4 {[%clk 0:01:52.8]} 19. Nxc4 {[%clk 0:01:16.6]} 19... b5 {[%clk
0:01:51]} 20. Ne3 {[%clk 0:01:02.4]} 20... Nxe3 {[%clk 0:01:45.1]} 21. Qxe3
{[%clk 0:01:03.3]} 21... Qxa3 {[%clk 0:01:39.2]} 22. Ra1 {[%clk 0:00:55]} 22...
Qb4 {[%clk 0:01:37.7]} 23. Rxa7 {[%clk 0:00:53.9]} 23... Nc5 {[%clk 0:01:31.5]}
24. Bxc5 {[%clk 0:00:51.5]} 24... Rxc5 {[%clk 0:01:30.9]} 25. Rd1 {[%clk
0:00:47]} 25... Rc3 {[%clk 0:01:25.6]} 26. Rd3 {[%clk 0:00:41.7]} 26... Rxd3
{[%clk 0:01:17.1]} 27. Qxd3 {[%clk 0:00:42.6]} 27... Qe1+ {[%clk 0:01:17.6]} 28.
Kg2 {[%clk 0:00:38.9]} 28... Qxe5 {[%clk 0:01:18.5]} 29. Rb7 {[%clk 0:00:38.2]}
29... Rb8 {[%clk 0:01:19]} 30. Rxb8+ {[%clk 0:00:20.1]} 30... Qxb8 {[%clk
0:01:18.4]} 31. Qd7 {[%clk 0:00:21]} 31... g6 {[%clk 0:01:17.5]} 32. Kh3 {[%clk
0:00:20.4]} 32... Qa8 {[%clk 0:01:16.5]} 33. Kh2 {[%clk 0:00:20.7]} 33... Qf3
{[%clk 0:01:08.2]} 34. Qe8+ {[%clk 0:00:17.1]} 34... Kh7 {[%clk 0:01:06.3]} 35.
Qxb5 {[%clk 0:00:18]} 35... Qxf2+ {[%clk 0:01:06.8]} 36. Kh3 {[%clk 0:00:18.9]}
36... e5 {[%clk 0:01:05.8]} 37. b4 {[%clk 0:00:17.8]} 37... e4 {[%clk
0:01:03.8]} 0-1

[Event "*** SCC Grand Prix: Titled Tuesday Blitz"]
[Site "Chess.com"]
[Date "2020.09.29"]
[Round "1"]
[White "Zarinur"]
[Black "GelmanAlexander"]
[Result "0-1"]
[WhiteElo "2182"]
[BlackElo "2524"]
[TimeControl "180+1"]
[EndTime "10:06:22 PDT"]
[Termination "GelmanAlexander won by resignation"]

1. e4 {[%clk 0:03:00.8]} 1... c5 {[%clk 0:02:59.4]} 2. Nf3 {[%clk 0:03:00.7]}
2... e6 {[%clk 0:02:58.4]} 3. g3 {[%clk 0:03:00.3]} 3... d6 {[%clk 0:02:56.5]}
4. Bg2 {[%clk 0:02:57.5]} 4... a6 {[%clk 0:02:56.9]} 5. O-O {[%clk 0:02:57]}
5... Nc6 {[%clk 0:02:56.8]} 6. Re1 {[%clk 0:02:56.9]} 6... Nf6 {[%clk
0:02:56.3]} 7. Qe2 {[%clk 0:02:53.9]} 7... Be7 {[%clk 0:02:55.5]} 8. e5 {[%clk
0:02:53.2]} 8... dxe5 {[%clk 0:02:49.3]} 9. Nxe5 {[%clk 0:02:54.1]} 9... Nd4
{[%clk 0:02:49.2]} 10. Qd1 {[%clk 0:02:53.3]} 10... O-O {[%clk 0:02:47.4]} 11.
c3 {[%clk 0:02:53]} 11... Nf5 {[%clk 0:02:46.8]} 12. d3 {[%clk 0:02:43.1]} 12...
Nd7 {[%clk 0:02:36.1]} 13. Nxd7 {[%clk 0:02:30.7]} 13... Qxd7 {[%clk 0:02:29]}
14. Bf4 {[%clk 0:02:28.9]} 14... Rd8 {[%clk 0:02:28.4]} 15. Be4 {[%clk
0:02:14.9]} 15... Nd6 {[%clk 0:02:12.6]} 16. Nd2 {[%clk 0:02:08.7]} 16... Nxe4
{[%clk 0:02:11.3]} 17. dxe4 {[%clk 0:02:05.6]} 17... b5 {[%clk 0:02:09.5]} 18.
Qf3 {[%clk 0:01:57.7]} 18... Bb7 {[%clk 0:01:52.7]} 19. Rad1 {[%clk 0:01:56]}
19... Qc6 {[%clk 0:01:53]} 20. Nb3 {[%clk 0:01:18.6]} 20... Rxd1 {[%clk
0:01:34.8]} 21. Qxd1 {[%clk 0:01:15.6]} 21... a5 {[%clk 0:01:33]} 22. c4 {[%clk
0:00:46.3]} 22... a4 {[%clk 0:01:21.3]} 23. cxb5 {[%clk 0:00:43.8]} 23... Qxb5
{[%clk 0:01:22.2]} 24. Nd2 {[%clk 0:00:41]} 24... Qxb2 {[%clk 0:01:15.8]} 25.
Qb1 {[%clk 0:00:36.8]} 25... a3 {[%clk 0:01:10.3]} 26. Nc4 {[%clk 0:00:28.4]}
26... Qb4 {[%clk 0:01:09.6]} 27. Qxb4 {[%clk 0:00:21.7]} 27... cxb4 {[%clk
0:01:08.8]} 28. Bd6 {[%clk 0:00:21.8]} 28... Bxd6 {[%clk 0:01:06.5]} 29. Nxd6
{[%clk 0:00:22.7]} 29... Ba6 {[%clk 0:01:05.5]} 30. Rb1 {[%clk 0:00:21.7]} 30...
Rb8 {[%clk 0:01:03.9]} 31. e5 {[%clk 0:00:19]} 31... Kf8 {[%clk 0:01:02.4]} 32.
f3 {[%clk 0:00:14.2]} 32... Bd3 {[%clk 0:01:00.2]} 33. Rb3 {[%clk 0:00:13.4]}
33... Bc2 {[%clk 0:00:59.6]} 34. Re3 {[%clk 0:00:12.9]} 34... b3 {[%clk
0:01:00]} 35. axb3 {[%clk 0:00:11.6]} 35... a2 {[%clk 0:01:00.2]} 36. Re1 {[%clk
0:00:11.3]} 36... Bb1 {[%clk 0:01:00.2]} 0-1

[Event "*** SCC Grand Prix: Titled Tuesday Blitz"]
[Site "Chess.com"]
[Date "2020.09.29"]
[Round "1"]
[White "WarEmblem"]
[Black "anasta10"]
[Result "0-1"]
[WhiteElo "2110"]
[BlackElo "2500"]
[TimeControl "180+1"]
[EndTime "10:06:27 PDT"]
[Termination "anasta10 won on time"]

1. e4 {[%clk 0:03:00.9]} 1... e6 {[%clk 0:02:55.1]} 2. d4 {[%clk 0:02:59.3]}
2... d5 {[%clk 0:02:55.5]} 3. Bd3 {[%clk 0:02:56.3]} 3... dxe4 {[%clk
0:02:47.8]} 4. Bxe4 {[%clk 0:02:55.3]} 4... Nf6 {[%clk 0:02:48.5]} 5. Bf3 {[%clk
0:02:54.7]} 5... Be7 {[%clk 0:02:49.1]} 6. Ne2 {[%clk 0:02:51.2]} 6... O-O
{[%clk 0:02:49.6]} 7. c4 {[%clk 0:02:42.8]} 7... c5 {[%clk 0:02:49.5]} 8. Nbc3
{[%clk 0:02:32.2]} 8... cxd4 {[%clk 0:02:46]} 9. Nxd4 {[%clk 0:02:30.7]} 9... e5
{[%clk 0:02:45.6]} 10. Nc2 {[%clk 0:02:12]} 10... Qxd1+ {[%clk 0:02:30.7]} 11.
Bxd1 {[%clk 0:02:10.3]} 11... Be6 {[%clk 0:02:30.7]} 12. b3 {[%clk 0:02:01.7]}
12... Nc6 {[%clk 0:02:30.6]} 13. O-O {[%clk 0:01:55.7]} 13... Nd4 {[%clk
0:02:27.1]} 14. Nxd4 {[%clk 0:01:40.9]} 14... exd4 {[%clk 0:02:27]} 15. Nb5
{[%clk 0:01:41]} 15... Rfd8 {[%clk 0:02:16.8]} 16. Bf3 {[%clk 0:01:08]} 16...
Rd7 {[%clk 0:02:16.7]} 17. Bb2 {[%clk 0:00:51.6]} 17... Bc5 {[%clk 0:02:09.5]}
18. Rad1 {[%clk 0:00:38.8]} 18... Rad8 {[%clk 0:02:07.1]} 19. Rfe1 {[%clk
0:00:20]} 19... a6 {[%clk 0:02:05.1]} 20. Na3 {[%clk 0:00:19.4]} 20... h6 {[%clk
0:01:31.6]} 21. Nc2 {[%clk 0:00:18.1]} 21... d3 {[%clk 0:01:29.9]} 22. Ne3
{[%clk 0:00:17.6]} 22... Bxe3 {[%clk 0:00:44.6]} 23. Rxe3 {[%clk 0:00:15.9]}
23... b5 {[%clk 0:00:45]} 24. Bxf6 {[%clk 0:00:09.6]} 24... gxf6 {[%clk
0:00:44.5]} 25. cxb5 {[%clk 0:00:04.5]} 25... axb5 {[%clk 0:00:44.2]} 26. Bc6
{[%clk 0:00:04.6]} 26... Rc7 {[%clk 0:00:42]} 27. Bxb5 {[%clk 0:00:04.4]} 27...
d2 {[%clk 0:00:41.4]} 0-1

[Event "*** SCC Grand Prix: Titled Tuesday Blitz"]
[Site "Chess.com"]
[Date "2020.09.29"]
[Round "1"]
[White "BillieKimbah"]
[Black "Emp3rador"]
[Result "1-0"]
[WhiteElo "2916"]
[BlackElo "2434"]
[TimeControl "180+1"]
[EndTime "10:06:33 PDT"]
[Termination "BillieKimbah won by checkmate"]

1. Nf3 {[%clk 0:02:54.5]} 1... d5 {[%clk 0:03:00]} 2. e3 {[%clk 0:02:54.1]} 2...
Nf6 {[%clk 0:03:00]} 3. c4 {[%clk 0:02:54.1]} 3... c6 {[%clk 0:03:00.3]} 4. Nc3
{[%clk 0:02:50.8]} 4... a6 {[%clk 0:02:58.3]} 5. h3 {[%clk 0:02:48.4]} 5... Bf5
{[%clk 0:02:53.3]} 6. Qb3 {[%clk 0:02:46]} 6... b5 {[%clk 0:02:44.2]} 7. cxd5
{[%clk 0:02:44.8]} 7... Nxd5 {[%clk 0:02:26.5]} 8. a4 {[%clk 0:02:39.9]} 8...
Nxc3 {[%clk 0:02:21.5]} 9. Qxc3 {[%clk 0:02:35.8]} 9... Qb6 {[%clk 0:02:04.9]}
10. Nd4 {[%clk 0:02:24.8]} 10... Bd7 {[%clk 0:02:02.8]} 11. axb5 {[%clk
0:02:24]} 11... cxb5 {[%clk 0:01:56.2]} 12. Nxb5 {[%clk 0:02:09]} 12... Nc6
{[%clk 0:01:43.3]} 13. Na3 {[%clk 0:02:04.5]} 13... e6 {[%clk 0:01:34]} 14. Be2
{[%clk 0:02:02.6]} 14... f6 {[%clk 0:01:16.2]} 15. Nc4 {[%clk 0:02:00.7]} 15...
Qc7 {[%clk 0:01:03]} 16. Bh5+ {[%clk 0:02:00.2]} 16... Kd8 {[%clk 0:00:57]} 17.
O-O {[%clk 0:01:55]} 17... Bb4 {[%clk 0:00:56.3]} 18. Qc2 {[%clk 0:01:55.1]}
18... Ke7 {[%clk 0:00:53.1]} 19. Be2 {[%clk 0:01:50.5]} 19... g6 {[%clk
0:00:49.1]} 20. b3 {[%clk 0:01:50.5]} 20... Rhc8 {[%clk 0:00:47.2]} 21. Bb2
{[%clk 0:01:50.3]} 21... Kf7 {[%clk 0:00:43.4]} 22. Rfc1 {[%clk 0:01:49.5]}
22... Be7 {[%clk 0:00:37.9]} 23. Bc3 {[%clk 0:01:37.9]} 23... Qb7 {[%clk
0:00:34.5]} 24. Bf3 {[%clk 0:01:36.8]} 24... Qb5 {[%clk 0:00:31.8]} 25. Rcb1
{[%clk 0:01:29.4]} 25... Rab8 {[%clk 0:00:29.8]} 26. Qe4 {[%clk 0:01:29.1]}
26... Qf5 {[%clk 0:00:12.4]} 27. Qh4 {[%clk 0:01:20.1]} 27... Kg7 {[%clk
0:00:09.3]} 28. e4 {[%clk 0:01:18.3]} 28... Qb5 {[%clk 0:00:08.6]} 29. Nd6
{[%clk 0:01:17]} 29... Bxd6 {[%clk 0:00:08.2]} 30. Qxf6+ {[%clk 0:01:16.6]}
30... Kh6 {[%clk 0:00:08.4]} 31. Qg7+ {[%clk 0:01:15]} 31... Kg5 {[%clk
0:00:08.8]} 32. Bf6+ {[%clk 0:00:52.5]} 32... Kf4 {[%clk 0:00:08.4]} 33. Qh6+
{[%clk 0:00:52.7]} 33... g5 {[%clk 0:00:07.5]} 34. Qh5 {[%clk 0:00:52.6]} 34...
e5 {[%clk 0:00:05.4]} 35. g3# {[%clk 0:00:52.1]} 1-0

[Event "*** SCC Grand Prix: Titled Tuesday Blitz"]
[Site "Chess.com"]
[Date "2020.09.29"]
[Round "1"]
[White "Dr-Bassem"]
[Black "Orest_Vovk"]
[Result "1-0"]
[WhiteElo "2772"]
[BlackElo "2395"]
[TimeControl "180+1"]
[EndTime "10:06:34 PDT"]
[Termination "Dr-Bassem won on time"]

1. e4 {[%clk 0:02:56.9]} 1... g5 {[%clk 0:02:58.3]} 2. d4 {[%clk 0:02:55.3]}
2... g4 {[%clk 0:02:57.4]} 3. Qxg4 {[%clk 0:02:40.3]} 3... d5 {[%clk 0:02:56]}
4. Qh4 {[%clk 0:02:34.6]} 4... dxe4 {[%clk 0:02:55.1]} 5. Qxe4 {[%clk 0:02:34]}
5... Nf6 {[%clk 0:02:54.1]} 6. Qh4 {[%clk 0:02:33.3]} 6... Rg8 {[%clk
0:02:52.4]} 7. Bg5 {[%clk 0:02:21.5]} 7... Rxg5 {[%clk 0:01:57]} 8. Qxg5 {[%clk
0:02:18.9]} 8... Qxd4 {[%clk 0:01:57.5]} 9. Nc3 {[%clk 0:02:14.9]} 9... Nc6
{[%clk 0:01:46.5]} 10. Nf3 {[%clk 0:02:10.6]} 10... Qb6 {[%clk 0:01:33.8]} 11.
O-O-O {[%clk 0:01:58.2]} 11... Ng4 {[%clk 0:01:19.2]} 12. Kb1 {[%clk 0:00:54]}
12... Nxf2 {[%clk 0:00:58.1]} 13. Nd5 {[%clk 0:00:54.1]} 13... Qa5 {[%clk
0:00:55]} 14. b4 {[%clk 0:00:49.4]} 14... Qxd5 {[%clk 0:00:24.9]} 15. Rxd5
{[%clk 0:00:36.9]} 15... Nxh1 {[%clk 0:00:24.6]} 16. Bb5 {[%clk 0:00:35]} 16...
Nf2 {[%clk 0:00:19.1]} 17. Nd4 {[%clk 0:00:21.9]} 17... Bd7 {[%clk 0:00:07.3]}
18. Rxd7 {[%clk 0:00:20.5]} 18... Kxd7 {[%clk 0:00:07]} 19. Qd5+ {[%clk
0:00:20.2]} 19... Kc8 {[%clk 0:00:07.2]} 20. Nxc6 {[%clk 0:00:20.2]} 20... bxc6
{[%clk 0:00:06.7]} 21. Ba6+ {[%clk 0:00:20.4]} 1-0